fUST/lending_fUST_20250120
["ID","MTS","AMOUNT","RATE_DAILY","PERIOD"]
[349679154,1737372636389,-151.0,0.00024224,7]
[349679155,1737372636398,-151.0,0.00024224,7]
[349679156,1737372636412,-151.0,0.00024224,7]
[349679157,1737372636422,-153.678091,0.00024224,7]
[349679158,1737372636431,-151.0,0.00024224,7]
[349679159,1737372636442,-152.877224,0.00024224,7]
[349679160,1737372636451,-151.0,0.00024224,7]
[349679161,1737372636460,-153.46487,0.00024224,7]
[349679162,1737372636470,-151.0,0.00024224,7]
[349679163,1737372636479,-151.0,0.00024224,7]
[349679164,1737372636489,-151.0,0.00024224,7]
[349679165,1737372636502,-151.0,0.00024224,7]
[349679166,1737372636512,-188.95385,0.00024224,7]
[349679167,1737372636521,-151.0,0.00024224,7]
[349679168,1737372636531,-151.0,0.00024224,7]
[349679169,1737372636541,-151.0,0.00024224,7]
[349679170,1737372636551,-151.0,0.00024224,7]
[349679171,1737372636564,-151.0,0.00024224,7]
[349679172,1737372636574,-171.873718,0.00024224,7]
[349679173,1737372636583,-23.39244989,0.00024224,7]
[349679174,1737372636597,-127.60755011,0.00024224,7]
[349679175,1737372636607,-151.0,0.00024224,7]
[349679176,1737372636617,-151.0,0.00024224,7]
[349679177,1737372636627,-151.0,0.00024224,7]
[349679178,1737372636638,-151.0,0.00024224,7]
[349679179,1737372636647,-151.0,0.00024224,7]
[349679180,1737372636660,-151.0,0.00024224,7]
[349679181,1737372636670,-151.0,0.00024224,7]
[349679182,1737372636680,-151.0,0.00024224,7]
[349679183,1737372636689,-151.0,0.00024224,7]
[349679184,1737372636699,-104.20329413,0.00024224,7]
[349679227,1737372638563,-299.88,0.00024199,14]
[349679229,1737372638572,-31.134997,0.00024199,14]
[349679231,1737372638584,-268.735003,0.00024199,14]
[349679233,1737372638595,-46.79670587,0.00024224,7]
[349679235,1737372638611,-151.0,0.00024224,7]
[349679237,1737372638621,-151.0,0.00024224,7]
[349679239,1737372638631,-151.0,0.00024224,7]
[349679241,1737372638641,-151.0,0.00024224,7]
[349679243,1737372638652,-151.0,0.00024224,7]
[349679245,1737372638664,-5.00898646,0.00024224,7]
[349679440,1737372640918,-3612.17690804,0.00023982,2]
[349679442,1737372640942,-145.99101354,0.00024224,7]
[349679444,1737372640951,-151.0,0.00024224,7]
[349679446,1737372640960,-151.0,0.00024224,7]
[349679448,1737372640969,-151.0,0.00024224,7]
[349679450,1737372640978,-289.522834,0.00024224,7]
[349679452,1737372640987,-156.740724,0.00024224,7]
[349679454,1737372640997,-151.0,0.00024224,7]
[349679456,1737372641006,-5114.92953421,0.00024224,61]
[349679657,1737372647012,-521.53,0.00024214,3]
[349679658,1737372647022,-156.84842839,0.00024223,2]
[349679659,1737372647033,-770.56430586,0.00024224,2]
[349679661,1737372774447,999.0,0.000167,2]
[349679662,1737372911296,894.12393913,0.00023233,120]
[349679663,1737372929854,1632.62747772,0.00024,120]
[349679665,1737373097407,159.132218,0.00013973,2]
[349679668,1737373747541,195.5708176,0.00023233,120]
[349679735,1737373838750,-469.56918857,0.00017175,2]
[349679736,1737373838760,-469.56918857,0.00017348,2]
[349679737,1737373838770,-469.56918857,0.00018612,2]
[349679738,1737373838779,-168.009661,0.00019117,2]
[349679739,1737373838788,-260.3210147,0.00019242,2]
[349679740,1737373838798,-349.41385278,0.0001948,2]
[349679741,1737373838807,-250.0,0.00019576,2]
[349679742,1737373838817,-151.0,0.0002,14]
[349679743,1737373838827,-156.45,0.00020414,2]
[349679744,1737373838837,-500.0,0.00020414,2]
[349679745,1737373838846,-3456.0726029,0.00020511,2]
[349679746,1737373838856,-201.127,0.00020856,2]
[349679747,1737373838866,-300.0,0.00020856,2]
[349679748,1737373838876,-24900.0,0.00020857,2]
[349679749,1737373838885,-381.33707805,0.000219,2]
[349679750,1737373838895,-224.925,0.00021917,3]
[349679751,1737373838904,-500.0,0.00021917,3]
[349679752,1737373838917,-500.0,0.00021917,3]
[349679753,1737373838926,-500.0,0.00021917,3]
[349679754,1737373838935,-500.0,0.00021917,3]
[349679755,1737373838945,-500.0,0.00021917,3]
[349679756,1737373838956,-500.0,0.00021917,3]
[349679757,1737373838966,-500.0,0.00021917,2]
[349679758,1737373838977,-500.0,0.00021917,3]
[349679759,1737373838986,-500.0,0.00021917,3]
[349679760,1737373838996,-174.52746545,0.00021917,3]
[349679761,1737373839006,-517.72339752,0.00021917,3]
[349679762,1737373839016,-1191.08,0.00021917,3]
[349679763,1737373839026,-500.0,0.00021917,3]
[349679764,1737373839036,-500.0,0.00021917,3]
[349679765,1737373839045,-500.0,0.00021917,3]
[349679766,1737373839055,-508.97,0.00021917,3]
[349679767,1737373839064,-500.0,0.00021917,3]
[349679768,1737373839074,-297.96554783,0.00021917,3]
[349679769,1737373839086,-202.03445217,0.00021917,3]
[349679770,1737373839095,-500.0,0.00021917,3]
[349679771,1737373839105,-500.0,0.00021917,3]
[349679772,1737373839114,-500.0,0.00021917,3]
[349679773,1737373839123,-500.0,0.00021917,3]
[349679774,1737373839133,-500.0,0.00021917,3]
[349679775,1737373839143,-170.02,0.00021917,3]
[349679776,1737373839152,-500.0,0.00021917,3]
[349679777,1737373839162,-500.0,0.00021917,3]
[349679778,1737373839171,-500.0,0.00021917,3]
[349679779,1737373839181,-500.0,0.00021917,3]
[349679780,1737373839190,-500.0,0.00021917,3]
[349679781,1737373839200,-500.0,0.00021917,3]
[349679782,1737373839209,-500.0,0.00021917,3]
[349679783,1737373839222,-48.82154965,0.00021917,3]
[349679842,1737373840957,-451.17845035,0.00021917,3]
[349679844,1737373840967,-500.0,0.00021917,3]
[349679846,1737373840979,-500.0,0.00021917,3]
[349679848,1737373840988,-500.0,0.00021917,3]
[349679850,1737373840998,-500.0,0.00021917,3]
[349679852,1737373841008,-500.0,0.00021917,3]
[349679854,1737373841017,-161.62889506,0.00021918,2]
[349679856,1737373841026,-379.546175,0.00022,3]
[349679858,1737373841036,-500.0,0.00022054,3]
[349679860,1737373841045,-500.0,0.00022054,3]
[349679862,1737373841054,-500.0,0.00022054,3]
[349679864,1737373841063,-621.15037079,0.00022054,3]
[349679866,1737373841072,-500.0,0.00022054,3]
[349679868,1737373841081,-500.0,0.00022054,3]
[349679870,1737373841090,-500.0,0.00022054,2]
[349679872,1737373841099,-500.0,0.00022054,3]
[349679874,1737373841109,-1191.08,0.00022054,3]
[349679876,1737373841118,-500.0,0.00022054,3]
[349679878,1737373841127,-500.0,0.00022054,3]
[349679880,1737373841137,-500.0,0.00022054,3]
[349679882,1737373841146,-508.97,0.00022054,3]
[349679884,1737373841157,-500.0,0.00022054,3]
[349679886,1737373841167,-500.0,0.00022054,3]
[349679888,1737373841176,-500.0,0.00022054,3]
[349679890,1737373841186,-500.0,0.00022054,3]
[349679892,1737373841195,-500.0,0.00022054,3]
[349679894,1737373841204,-500.0,0.00022054,3]
[349679896,1737373841214,-500.0,0.00022054,3]
[349679898,1737373841225,-500.0,0.00022054,3]
[349679900,1737373841234,-500.0,0.00022054,3]
[349679902,1737373841243,-500.0,0.00022054,3]
[349679904,1737373841253,-500.0,0.00022054,3]
[349679906,1737373841263,-500.0,0.00022054,3]
[349679908,1737373841273,-500.0,0.00022054,3]
[349679910,1737373841283,-500.0,0.00022054,3]
[349679912,1737373841293,-500.0,0.00022054,3]
[349679914,1737373841303,-500.0,0.00022054,3]
[349679916,1737373841312,-500.0,0.00022054,3]
[349679918,1737373841321,-500.0,0.00022054,3]
[349679920,1737373841331,-500.0,0.00022054,3]
[349679922,1737373841341,-500.0,0.00022054,3]
[349679924,1737373841350,-500.0,0.00022183,7]
[349679926,1737373841360,-503.76285055,0.00022183,3]
[349679928,1737373841369,-500.0,0.00022183,3]
[349679930,1737373841379,-500.0,0.00022183,3]
[349679932,1737373841389,-224.925,0.00022191,3]
[349679934,1737373841400,-537.62,0.00022191,3]
[349679936,1737373841410,-1191.08,0.00022191,3]
[349679938,1737373841419,-508.97,0.00022191,3]
[349679940,1737373841429,-500.0,0.00022191,3]
[349679942,1737373841440,-500.0,0.00022191,3]
[349679944,1737373841450,-500.0,0.00022191,3]
[349679946,1737373841459,-500.0,0.00022191,3]
[349679948,1737373841468,-500.0,0.00022191,3]
[349679950,1737373841478,-639.44,0.00022191,3]
[349679952,1737373841488,-500.0,0.00022191,3]
[349679954,1737373841497,-500.0,0.00022191,3]
[349679956,1737373841507,-500.0,0.00022191,3]
[349679958,1737373841516,-500.0,0.00022191,3]
[349679960,1737373841525,-500.0,0.00022191,3]
[349679962,1737373841534,-500.0,0.00022191,3]
[349679964,1737373841544,-500.0,0.00022191,3]
[349679966,1737373841553,-500.0,0.00022191,3]
[349679968,1737373841562,-500.0,0.00022191,3]
[349679970,1737373841571,-500.0,0.00022191,3]
[349679972,1737373841581,-500.0,0.00022191,3]
[349679974,1737373841590,-500.0,0.00022191,3]
[349679976,1737373841600,-500.0,0.0002232,3]
[349679978,1737373841609,-500.0,0.0002232,3]
[349679980,1737373841618,-1191.08,0.00022328,3]
[349679982,1737373841628,-508.97,0.00022328,3]
[349679984,1737373841637,-500.0,0.00022328,3]
[349679986,1737373841646,-500.0,0.00022328,3]
[349679988,1737373841656,-502.55,0.00022328,3]
[349679990,1737373841665,-500.0,0.00022328,3]
[349679992,1737373841675,-500.0,0.00022328,3]
[349679994,1737373841684,-500.0,0.00022328,3]
[349679996,1737373841693,-605.22,0.00022328,3]
[349679998,1737373841703,-500.0,0.00022328,3]
[349680000,1737373841712,-1191.08,0.00022465,3]
[349680002,1737373841722,-508.97,0.00022465,3]
[349680004,1737373841731,-500.0,0.00022465,3]
[349680006,1737373841740,-500.0,0.00022465,3]
[349680008,1737373841750,-500.0,0.00022465,3]
[349680010,1737373841759,-500.0,0.00022465,3]
[349680012,1737373841769,-821.61,0.000225,2]
[349680014,1737373841778,-1191.08,0.00022602,3]
[349680016,1737373841788,-508.97,0.00022602,3]
[349680018,1737373841798,-500.0,0.00022602,3]
[349680020,1737373841808,-500.0,0.00022602,3]
[349680022,1737373841818,-500.0,0.00022602,3]
[349680024,1737373841829,-420.0,0.0002269,2]
[349680026,1737373841838,-1191.08,0.00022739,3]
[349680028,1737373841847,-508.97,0.00022739,3]
[349680030,1737373841857,-500.0,0.00022739,3]
[349680032,1737373841867,-500.0,0.00022739,3]
[349680034,1737373841876,-500.0,0.00022739,3]
[349680036,1737373841885,-347.66,0.00022866,3]
[349680038,1737373841894,-1191.08,0.00022876,3]
[349680040,1737373841904,-508.97,0.00022876,3]
[349680042,1737373841921,-201.04,0.00022876,3]
[349680044,1737373841932,-500.0,0.00022876,3]
[349680046,1737373841942,-500.0,0.00022876,3]
[349680049,1737373841952,-305.0779637,0.000229,3]
[349680051,1737373841963,-305.07796364,0.00022969,3]
[349680053,1737373841972,-395.0,0.00023007,2]
[349680055,1737373841983,-542.012,0.0002301,2]
[349680070,1737373842109,-1191.08,0.00023013,3]
[349680072,1737373842123,-508.97,0.00023013,3]
[349680074,1737373842133,-383.9895869,0.00023013,3]
[349680076,1737373842142,-500.0,0.00023013,3]
[349680078,1737373842152,-305.07796364,0.00023038,3]
[349680080,1737373842161,-305.07796364,0.00023107,3]
[349680082,1737373842170,-1191.08,0.0002315,3]
[349680084,1737373842179,-508.97,0.0002315,3]
[349680086,1737373842189,-500.0,0.0002315,3]
[349680088,1737373842198,-305.07796364,0.00023176,3]
[349680090,1737373842208,-305.07796364,0.00023245,3]
[349680092,1737373842217,-1191.08,0.00023287,3]
[349680094,1737373842228,-508.97,0.00023287,3]
[349680096,1737373842238,-500.0,0.00023287,3]
[349680098,1737373842247,-305.07796364,0.00023314,3]
[349680100,1737373842256,-305.07796364,0.00023383,3]
[349680102,1737373842266,-1191.08,0.00023424,3]
[349680104,1737373842275,-508.97,0.00023424,3]
[349680106,1737373842284,-500.0,0.00023424,3]
[349680108,1737373842294,-305.07796364,0.00023452,3]
[349680110,1737373842303,-305.07796364,0.00023521,3]
[349680112,1737373842312,-1191.08,0.00023561,3]
[349680114,1737373842321,-508.97,0.00023561,3]
[349680116,1737373842330,-500.0,0.00023561,3]
[349680118,1737373842340,-305.07796364,0.0002359,3]
[349680120,1737373842349,-300.0,0.000236,10]
[349680122,1737373842358,-1200.0,0.00023601,2]
[349680124,1737373842367,-305.07796364,0.00023659,3]
[349680126,1737373842376,-1191.08,0.00023698,3]
[349680128,1737373842385,-508.97,0.00023698,3]
[349680130,1737373842395,-500.0,0.00023698,3]
[349680132,1737373842404,-305.07796364,0.00023728,3]
[349680134,1737373842413,-305.07796364,0.00023797,3]
[349680136,1737373842422,-1191.08,0.00023835,3]
[349680138,1737373842431,-508.97,0.00023835,3]
[349680140,1737373842441,-500.0,0.00023835,3]
[349680142,1737373842450,-305.07796364,0.00023866,3]
[349680144,1737373842459,-305.07796364,0.00023934,3]
[349680146,1737373842468,-1191.08,0.00023972,3]
[349680148,1737373842480,-508.97,0.00023972,3]
[349680150,1737373842489,-500.0,0.00023972,3]
[349680152,1737373842499,-305.07796364,0.00024003,3]
[349680154,1737373842508,-305.07796364,0.00024072,3]
[349680156,1737373842517,-155.433122,0.000241,31]
[349680158,1737373842527,-154.17,0.000241,31]
[349680160,1737373842536,-154.17,0.000241,31]
[349680163,1737373842546,-154.17,0.000241,31]
[349680165,1737373842556,-154.17,0.000241,31]
[349680167,1737373842565,-154.17,0.000241,31]
[349680169,1737373842574,-154.17,0.000241,31]
[349680171,1737373842583,-154.17,0.000241,31]
[349680173,1737373842593,-1191.08,0.00024109,3]
[349680175,1737373842602,-508.97,0.00024109,3]
[349680177,1737373842611,-500.0,0.00024109,3]
[349680179,1737373842620,-305.07796364,0.00024141,3]
[349680181,1737373842630,-155.433122,0.00024199,14]
[349680183,1737373842639,-2000.0,0.000242,2]
[349680185,1737373842648,-155.433122,0.000242,10]
[349680187,1737373842658,-305.07796364,0.0002421,3]
[349680189,1737373842667,-160.0,0.00024224,3]
[349680191,1737373842676,-160.93468141,0.00024224,5]
[349680193,1737373842686,-159.132218,0.00024224,2]
[349680195,1737373842695,-299.84,0.00024224,7]
[349680197,1737373842704,-299.83,0.00024224,7]
[349680199,1737373842714,-500.0,0.00024224,7]
[349680201,1737373842724,-500.0,0.00024224,7]
[349680202,1737373842734,-150.18,0.00024224,7]
[349680204,1737373842743,-500.0,0.00024229,2]
[349680207,1737373842752,-500.0,0.00024229,2]
[349680208,1737373842762,-500.0,0.00024229,2]
[349680211,1737373842771,-500.0,0.00024229,2]
[349680212,1737373842781,-500.0,0.00024229,2]
[349680215,1737373842790,-500.0,0.00024229,2]
[349680216,1737373842799,-500.0,0.00024229,2]
[349680218,1737373842809,-500.0,0.00024229,2]
[349680221,1737373842819,-500.0,0.00024229,2]
[349680223,1737373842829,-500.0,0.00024229,2]
[349680225,1737373842838,-500.0,0.00024229,2]
[349680227,1737373842848,-500.0,0.00024229,2]
[349680228,1737373842857,-500.0,0.00024229,2]
[349680231,1737373842867,-565.86407809,0.00024229,2]
[349680233,1737373842876,-500.0,0.00024229,2]
[349680235,1737373842885,-500.0,0.00024229,2]
[349680237,1737373842894,-607.76605943,0.00024229,2]
[349680239,1737373842904,-500.0,0.00024229,2]
[349680241,1737373842915,-500.0,0.00024229,2]
[349680243,1737373842924,-465.86882199,0.00024229,2]
[349680244,1737373842933,-22594.07017237,0.0002423,5]
[349680246,1737373842943,-7775.47617478,0.0002423,5]
[349680248,1737373842953,-69322.99496282,0.0002423,15]
[349680649,1737373846850,-500.0,0.00021917,3]
[349680651,1737373846859,-500.0,0.00022602,3]
[349680653,1737373846869,-500.0,0.00022739,3]
[349680655,1737373846879,-500.0,0.00022876,3]
[349680657,1737373846888,-500.0,0.00023013,3]
[349680659,1737373846897,-10.43915761,0.0002315,3]
[349681915,1737374166838,159.132218,0.00013973,2]
[349682002,1737375032177,-254.2247187,0.00018524,2]
[349682004,1737375032187,-254.2247187,0.00018711,2]
[349682006,1737375032197,-254.2247187,0.000189,2]
[349682008,1737375032206,-52.225801,0.00019704,2]
[349682016,1737375032284,-1994.9167394,0.00019704,2]
[349682018,1737375032294,-300.0,0.00020279,2]
[349682020,1737375032303,-24900.0,0.0002028,2]
[349682022,1737375032314,-879.0174282,0.00020406,2]
[349682024,1737375032323,-580.0,0.00020414,2]
[349682027,1737375032333,-361.349691,0.00020491,2]
[349682030,1737375032343,-473.90465958,0.00020719,2]
[349682032,1737375032352,-250.0,0.00020782,2]
[349682034,1737375032362,-2861.0,0.00021009,2]
[349682036,1737375032372,-6106.8414279,0.00021242,2]
[349682039,1737375032381,-636.30610776,0.00021242,2]
[349682040,1737375032391,-165.90295204,0.00021817,2]
[349682043,1737375032400,-294.95,0.00021907,2]
[349682045,1737375032410,-200.33,0.00021917,2]
[349682047,1737375032419,-500.0,0.00021917,3]
[349682049,1737375032428,-160.902,0.00021917,2]
[349682050,1737375032437,-500.0,0.00021917,3]
[349682052,1737375032447,-500.0,0.00021917,3]
[349682054,1737375032455,-146.78739964,0.00021917,3]
[349682057,1737375032467,-353.21260036,0.00021917,3]
[349682059,1737375032476,-500.0,0.00021917,3]
[349682061,1737375032486,-649.6,0.00021917,3]
[349682063,1737375032501,-500.0,0.00021917,3]
[349682065,1737375032511,-500.0,0.00021917,3]
[349682067,1737375032520,-500.0,0.00021917,3]
[349682069,1737375032530,-500.0,0.00021917,3]
[349682071,1737375032539,-500.0,0.00021917,3]
[349682073,1737375032548,-500.0,0.00021917,3]
[349682075,1737375032557,-500.0,0.00021917,3]
[349682077,1737375032567,-500.0,0.00021917,3]
[349682078,1737375032576,-76.85664861,0.00021917,3]
[349682581,1737375037891,-825.68426819,0.00021698,2]
[349682588,1737375037945,-2965.40019865,0.00021698,2]
[349682590,1737375037954,-423.14335139,0.00021917,3]
[349682592,1737375037964,-500.0,0.00021917,3]
[349682594,1737375037974,-500.0,0.00021917,3]
[349682596,1737375037984,-500.0,0.00021917,3]
[349682598,1737375037994,-500.0,0.00021917,3]
[349682600,1737375038007,-500.0,0.00021917,3]
[349682602,1737375038017,-500.0,0.00021917,3]
[349682604,1737375038026,-500.0,0.00021917,3]
[349682606,1737375038036,-518.68,0.00021917,3]
[349682607,1737375038045,-511.43,0.00021917,3]
[349682608,1737375038055,-294.98,0.00021917,3]
[349682609,1737375038064,-500.0,0.00021917,3]
[349682610,1737375038073,-529.17843527,0.00021917,3]
[349682611,1737375038083,-500.0,0.00021917,3]
[349682612,1737375038091,-500.0,0.00021917,3]
[349682613,1737375038101,-500.0,0.00021917,3]
[349682614,1737375038111,-207.31613236,0.00021917,3]
[349682615,1737375038120,-500.0,0.00021917,3]
[349682616,1737375038130,-543.16,0.00021917,3]
[349682617,1737375038138,-503.44112198,0.00021917,3]
[349682618,1737375038147,-459.26374738,0.00021917,3]
[349682619,1737375038158,-516.76321745,0.00021917,3]
[349682620,1737375038167,-500.0,0.00021917,3]
[349682621,1737375038176,-350.32462203,0.00021917,3]
[349682622,1737375038186,-500.0,0.00021917,3]
[349682623,1737375038195,-505.61327145,0.00021917,3]
[349682624,1737375038204,-297.89708843,0.00021917,3]
[349682625,1737375038213,-500.0,0.00021917,3]
[349682626,1737375038222,-500.0,0.00021917,3]
[349682627,1737375038231,-500.0,0.00021917,3]
[349682628,1737375038240,-500.0,0.00021917,3]
[349682629,1737375038251,-500.0,0.00021917,3]
[349682630,1737375038265,-162.18838518,0.00021917,3]
[349682631,1737375038275,-515.36453657,0.00021917,3]
[349682632,1737375038284,-500.0,0.00021917,3]
[349682633,1737375038294,-500.0,0.00021917,3]
[349682634,1737375038306,-500.0000008,0.00021917,3]
[349682635,1737375038315,-212.17547302,0.00021917,3]
[349682636,1737375038324,-500.0,0.00021917,3]
[349682638,1737375038336,-765.81,0.00021917,3]
[349682639,1737375038347,-500.0,0.00021917,3]
[349682640,1737375038356,-500.0,0.00021917,3]
[349682641,1737375038366,-500.0,0.00021917,3]
[349682643,1737375038376,-500.0,0.00021917,3]
[349682645,1737375038385,-500.0,0.00021917,3]
[349682647,1737375038395,-500.0,0.00021917,3]
[349682648,1737375038405,-500.0,0.00021917,3]
[349682650,1737375038415,-500.0,0.00021917,3]
[349682652,1737375038425,-500.0,0.00021917,3]
[349682654,1737375038435,-500.0,0.00021917,3]
[349682656,1737375038445,-500.0,0.00021917,3]
[349682658,1737375038455,-500.0,0.00021917,3]
[349682660,1737375038464,-500.0,0.00021917,3]
[349682662,1737375038473,-548.95000004,0.00021917,3]
[349682664,1737375038483,-500.0,0.00021917,3]
[349682666,1737375038492,-500.0,0.00021917,3]
[349682668,1737375038504,-500.0,0.00021917,3]
[349682670,1737375038513,-500.0,0.00021917,3]
[349682672,1737375038523,-500.0,0.00021917,3]
[349682674,1737375038532,-500.0,0.00021917,3]
[349682677,1737375038542,-500.0,0.00021917,3]
[349682678,1737375038551,-500.0,0.00021917,3]
[349682680,1737375038561,-500.0,0.00021917,3]
[349682683,1737375038571,-500.0,0.00021917,3]
[349682685,1737375038584,-500.0,0.00021917,3]
[349682687,1737375038594,-500.0,0.00021917,3]
[349682689,1737375038603,-500.0,0.00021917,3]
[349682691,1737375038613,-151.09,0.00021917,3]
[349682693,1737375038622,-500.0,0.00021917,3]
[349682695,1737375038631,-500.0,0.00021917,3]
[349682697,1737375038640,-500.0,0.00021917,3]
[349682699,1737375038649,-500.0,0.00021917,3]
[349682701,1737375038659,-500.0,0.00021917,3]
[349682703,1737375038668,-500.0,0.00021917,3]
[349682705,1737375038677,-500.0,0.00021917,3]
[349682707,1737375038687,-256.18645909,0.00021917,3]
[349682708,1737375038696,-500.0,0.00021917,3]
[349682709,1737375038705,-500.0,0.00021917,3]
[349682710,1737375038714,-500.0,0.00021917,3]
[349682711,1737375038723,-500.0,0.00021917,3]
[349682712,1737375038732,-500.0,0.00021917,3]
[349682713,1737375038741,-500.0,0.00021917,3]
[349682714,1737375038752,-500.0,0.00021917,3]
[349682715,1737375038761,-500.0,0.00021917,3]
[349682716,1737375038770,-244.73785725,0.00021917,3]
[349682717,1737375038779,-500.0,0.00021917,3]
[349682718,1737375038788,-500.0,0.00021917,3]
[349682719,1737375038798,-500.0,0.00021917,3]
[349682720,1737375038807,-796.13,0.00022044,3]
[349682722,1737375038816,-500.0,0.00022053,3]
[349682724,1737375038826,-500.0,0.00022054,3]
[349682726,1737375038837,-182.71466115,0.00022054,3]
[349682728,1737375038847,-500.0,0.00022054,3]
[349682730,1737375038857,-500.0,0.00022054,3]
[349682732,1737375038866,-500.0,0.00022054,3]
[349682734,1737375038876,-542.16219644,0.00022054,3]
[349682736,1737375038886,-595.4,0.00022054,3]
[349682738,1737375038896,-500.0,0.00022054,3]
[349682740,1737375038906,-500.0,0.00022054,3]
[349682742,1737375038915,-500.0,0.00022054,3]
[349682744,1737375038925,-516.10599631,0.00022054,3]
[349682746,1737375038935,-500.0,0.00022054,3]
[349682748,1737375038944,-500.0,0.00022054,3]
[349682750,1737375038954,-500.0,0.00022054,3]
[349682752,1737375038963,-765.81,0.00022054,3]
[349682754,1737375038973,-500.0,0.00022054,3]
[349682756,1737375038983,-286.39,0.00022054,3]
[349682758,1737375038992,-500.0,0.00022054,3]
[349682760,1737375039006,-500.0,0.00022054,3]
[349682762,1737375039016,-188.95,0.00022054,3]
[349682764,1737375039025,-500.0,0.00022054,3]
[349682766,1737375039034,-500.0,0.00022054,3]
[349682768,1737375039044,-500.0,0.00022054,3]
[349682770,1737375039054,-500.0,0.00022054,3]
[349682772,1737375039063,-500.0,0.00022054,3]
[349682774,1737375039073,-500.0,0.00022054,3]
[349682776,1737375039083,-627.50839119,0.00022054,3]
[349682791,1737375039222,-500.0,0.00022054,3]
[349682793,1737375039237,-185.54,0.00022054,3]
[349682795,1737375039247,-500.0,0.00022054,3]
[349682797,1737375039264,-500.0,0.00022054,3]
[349682799,1737375039274,-500.0,0.00022054,3]
[349682801,1737375039284,-500.0,0.00022054,3]
[349682803,1737375039294,-615.58780601,0.00022054,3]
[349682805,1737375039305,-397.40132696,0.00022054,3]
[349682808,1737375039315,-420.0,0.00022076,2]
[349682810,1737375039324,-500.0,0.0002219,3]
[349682812,1737375039334,-500.0,0.00022191,3]
[349682814,1737375039346,-644.91,0.00022191,3]
[349682816,1737375039356,-765.81,0.00022191,3]
[349682818,1737375039365,-500.0,0.00022191,3]
[349682820,1737375039374,-500.0,0.00022191,3]
[349682822,1737375039384,-500.0,0.00022191,3]
[349682824,1737375039393,-637.63,0.00022191,3]
[349682826,1737375039402,-473.34,0.00022191,3]
[349682828,1737375039412,-423.99,0.00022191,3]
[349682830,1737375039422,-306.13,0.00022191,3]
[349682832,1737375039433,-530.17,0.00022191,3]
[349682835,1737375039442,-260.06124234,0.00022191,3]
[349682837,1737375039460,-239.93875766,0.00022191,3]
[349682839,1737375039470,-449.88590498,0.00022191,3]
[349683178,1737375043114,-628.99,0.00021917,3]
[349683180,1737375043124,-50.11409502,0.00022191,3]
[349683182,1737375043134,-500.0,0.00022191,3]
[349683184,1737375043143,-287.10821762,0.00022227,3]
[349683514,1737375046130,-12.49178238,0.00022227,3]
[349683516,1737375046141,-185.1765669,0.00022228,2]
[349683518,1737375046151,-765.81,0.00022328,3]
[349683520,1737375046161,-500.0,0.00022328,3]
[349683522,1737375046172,-258.29,0.00022328,3]
[349683524,1737375046182,-301.73,0.00022328,3]
[349683526,1737375046192,-500.0,0.00022328,3]